[Event "*** Titled Tuesday 3|2 Blitz"]
[Site "Chess.com"]
[Date "2015.07.07"]
[Round "3"]
[White "matein28"]
[Black "patzerplay"]
[Result "1-0"]
[WhiteElo "2194"]
[BlackElo "2180"]
[TimeControl "180+2"]
[EndTime "11:32:33 PDT"]
[Termination "matein28 won by checkmate"]

1. d4 {[%clk 0:03:01.9]} 1... d6 {[%clk 0:02:55.5]} 2. c4 {[%clk 0:03:02.1]}
2... c6 {[%clk 0:02:56.9]} 3. Nc3 {[%clk 0:03:02.8]} 3... Qc7 {[%clk 0:02:58.8]}
4. g3 {[%clk 0:03:04]} 4... Nf6 {[%clk 0:02:59.1]} 5. Bg2 {[%clk 0:03:05.6]}
5... e5 {[%clk 0:02:58.4]} 6. e4 {[%clk 0:03:06.8]} 6... Be7 {[%clk 0:02:58.4]}
7. Nge2 {[%clk 0:03:07]} 7... O-O {[%clk 0:02:59.3]} 8. O-O {[%clk 0:03:08.3]}
8... b6 {[%clk 0:02:59.6]} 9. f4 {[%clk 0:03:09.4]} 9... Nbd7 {[%clk 0:02:58.9]}
10. fxe5 {[%clk 0:03:03.9]} 10... dxe5 {[%clk 0:02:59.8]} 11. d5 {[%clk
0:03:05.5]} 11... Bb7 {[%clk 0:02:59.9]} 12. Bg5 {[%clk 0:03:01.1]} 12... h6
{[%clk 0:02:57.8]} 13. Bc1 {[%clk 0:02:58.2]} 13... Bc5+ {[%clk 0:02:54]} 14.
Kh1 {[%clk 0:02:54.3]} 14... Ng4 {[%clk 0:02:51.7]} 15. Qe1 {[%clk 0:02:53.8]}
15... Ne3 {[%clk 0:02:48.2]} 16. Bxe3 {[%clk 0:02:53.3]} 16... Bxe3 {[%clk
0:02:50.1]} 17. dxc6 {[%clk 0:02:48.5]} 17... Bxc6 {[%clk 0:02:50.7]} 18. Nd5
{[%clk 0:02:49.9]} 18... Bxd5 {[%clk 0:02:51.6]} 19. cxd5 {[%clk 0:02:50.8]}
19... a6 {[%clk 0:02:19.6]} 20. Nc3 {[%clk 0:02:46]} 20... Bd4 {[%clk
0:02:20.8]} 21. Rc1 {[%clk 0:02:46.9]} 21... Nc5 {[%clk 0:02:20.1]} 22. Na4
{[%clk 0:02:40.2]} 22... Qd6 {[%clk 0:01:54.2]} 23. Nxc5 {[%clk 0:02:33.4]}
23... bxc5 {[%clk 0:01:48.6]} 24. b3 {[%clk 0:02:33.9]} 24... a5 {[%clk
0:01:48.1]} 25. Rc4 {[%clk 0:02:34]} 25... Rfb8 {[%clk 0:01:24.3]} 26. Qe2
{[%clk 0:02:28.2]} 26... a4 {[%clk 0:01:13.4]} 27. Qh5 {[%clk 0:02:19.9]} 27...
g6 {[%clk 0:00:53.4]} 28. Qxh6 {[%clk 0:02:19.2]} 28... axb3 {[%clk 0:00:53.7]}
29. axb3 {[%clk 0:02:20]} 29... Rxb3 {[%clk 0:00:54.9]} 30. Bh3 {[%clk
0:02:21.6]} 30... Be3 {[%clk 0:00:26.8]} 31. Qh4 {[%clk 0:02:14.2]} 31... Qa6
{[%clk 0:00:22.1]} 32. Rc2 {[%clk 0:02:07.2]} 32... Qd3 {[%clk 0:00:20.9]} 33.
Ra2 {[%clk 0:01:46.3]} 33... Rxa2 {[%clk 0:00:16.7]} 34. Qd8+ {[%clk 0:01:47.3]}
34... Kg7 {[%clk 0:00:11.3]} 35. Qf6+ {[%clk 0:01:48.3]} 35... Kh6 {[%clk
0:00:08.4]} 36. Qh8+ {[%clk 0:01:46.5]} 36... Kg5 {[%clk 0:00:08.5]} 37. Qh4#
{[%clk 0:01:48.2]} 1-0

[Event "*** Titled Tuesday 3|2 Blitz"]
[Site "Chess.com"]
[Date "2015.07.07"]
[Round "3"]
[White "AlexanderL"]
[Black "Danirod"]
[Result "1-0"]
[WhiteElo "2527"]
[BlackElo "2412"]
[TimeControl "180+2"]
[EndTime "11:32:44 PDT"]
[Termination "AlexanderL won by resignation"]

1. g3 {[%clk 0:03:01.9]} 1... d5 {[%clk 0:03:00.6]} 2. Nf3 {[%clk 0:03:02.5]}
2... Nf6 {[%clk 0:02:59.8]} 3. Bg2 {[%clk 0:03:02.9]} 3... c6 {[%clk 0:03:00.9]}
4. b3 {[%clk 0:02:52.2]} 4... g6 {[%clk 0:02:57.4]} 5. Bb2 {[%clk 0:02:52.3]}
5... Bg7 {[%clk 0:02:59.1]} 6. O-O {[%clk 0:02:53.3]} 6... O-O {[%clk
0:03:00.4]} 7. c4 {[%clk 0:02:54.4]} 7... Bg4 {[%clk 0:03:00.2]} 8. d3 {[%clk
0:02:50.7]} 8... Nbd7 {[%clk 0:02:59.4]} 9. Nbd2 {[%clk 0:02:51.7]} 9... Re8
{[%clk 0:02:56.9]} 10. Ne5 {[%clk 0:02:51.3]} 10... Nxe5 {[%clk 0:02:51.7]} 11.
Bxe5 {[%clk 0:02:51.9]} 11... Qd7 {[%clk 0:02:40.7]} 12. Re1 {[%clk 0:02:52.6]}
12... Bh3 {[%clk 0:02:41.2]} 13. Bh1 {[%clk 0:02:52.8]} 13... Rad8 {[%clk
0:02:38.2]} 14. Rc1 {[%clk 0:02:52.6]} 14... Qf5 {[%clk 0:02:35.9]} 15. Nf3
{[%clk 0:02:49.1]} 15... Ng4 {[%clk 0:02:15.1]} 16. Bxg7 {[%clk 0:02:48.8]}
16... Kxg7 {[%clk 0:02:17]} 17. Qd2 {[%clk 0:02:48.6]} 17... d4 {[%clk 0:02:02]}
18. Qg5 {[%clk 0:02:46.1]} 18... Nh6 {[%clk 0:01:45.2]} 19. Qxf5 {[%clk
0:02:26.2]} 19... Nxf5 {[%clk 0:01:45.2]} 20. Ng5 {[%clk 0:02:21.9]} 20... Bg4
{[%clk 0:01:46.1]} 21. h3 {[%clk 0:02:23.1]} 21... h5 {[%clk 0:01:22.6]} 22.
hxg4 {[%clk 0:02:19.8]} 22... hxg4 {[%clk 0:01:23.8]} 23. Ne4 {[%clk 0:02:15.6]}
23... b6 {[%clk 0:01:23.1]} 24. c5 {[%clk 0:02:14.3]} 24... b5 {[%clk
0:01:18.9]} 25. Nd2 {[%clk 0:02:12.6]} 25... Rc8 {[%clk 0:01:18.7]} 26. Be4
{[%clk 0:02:13]} 26... e5 {[%clk 0:01:19]} 27. b4 {[%clk 0:02:10.4]} 27... Ne7
{[%clk 0:01:18.7]} 28. e3 {[%clk 0:02:10.1]} 28... Rcd8 {[%clk 0:01:16.6]} 29.
exd4 {[%clk 0:02:04.5]} 29... Rxd4 {[%clk 0:01:15.3]} 30. a3 {[%clk 0:02:05.6]}
30... f5 {[%clk 0:01:13.8]} 31. Nb3 {[%clk 0:02:05.6]} 31... Rdd8 {[%clk
0:01:13.5]} 32. Bg2 {[%clk 0:02:06.2]} 32... Rxd3 {[%clk 0:01:11.2]} 33. Na5
{[%clk 0:01:54.1]} 33... e4 {[%clk 0:01:11.4]} 34. Bxe4 {[%clk 0:01:55.3]} 34...
fxe4 {[%clk 0:01:11.1]} 35. Rxe4 {[%clk 0:01:57.2]} 35... Rd7 {[%clk 0:00:41.7]}
36. Rce1 {[%clk 0:01:55.6]} 36... Rc7 {[%clk 0:00:42.9]} 37. Nxc6 {[%clk
0:01:39.3]} 37... Rxc6 {[%clk 0:00:44]} 38. Rxe7+ {[%clk 0:01:40.3]} 38... Rxe7
{[%clk 0:00:45.5]} 39. Rxe7+ {[%clk 0:01:41.2]} 39... Kf6 {[%clk 0:00:47]} 40.
Rxa7 {[%clk 0:01:43]} 40... Ke5 {[%clk 0:00:46.4]} 41. Ra5 {[%clk 0:01:42.3]}
41... Kd4 {[%clk 0:00:44.7]} 42. Rxb5 {[%clk 0:01:42.5]} 42... Ra6 {[%clk
0:00:46.2]} 43. Rb6 {[%clk 0:01:42.3]} 43... Rxa3 {[%clk 0:00:46.9]} 44. Rxg6
{[%clk 0:01:44.1]} 44... Kd5 {[%clk 0:00:46.3]} 45. Rxg4 {[%clk 0:01:44.6]} 1-0

[Event "*** Titled Tuesday 3|2 Blitz"]
[Site "Chess.com"]
[Date "2015.07.07"]
[Round "3"]
[White "lexiel"]
[Black "Tirantes"]
[Result "1-0"]
[WhiteElo "2210"]
[BlackElo "2227"]
[TimeControl "180+2"]
[EndTime "11:33:00 PDT"]
[Termination "lexiel won by resignation"]

1. b3 {[%clk 0:03:01.9]} 1... e5 {[%clk 0:02:59.1]} 2. Bb2 {[%clk 0:03:03]} 2...
d6 {[%clk 0:03:00.1]} 3. e3 {[%clk 0:03:04]} 3... Nf6 {[%clk 0:03:00.3]} 4. Ne2
{[%clk 0:03:04.2]} 4... g6 {[%clk 0:03:00.1]} 5. d4 {[%clk 0:03:03.7]} 5... Nbd7
{[%clk 0:02:59.7]} 6. Nbc3 {[%clk 0:03:04.6]} 6... Bg7 {[%clk 0:02:59.9]} 7. Qd2
{[%clk 0:03:04]} 7... O-O {[%clk 0:02:58.9]} 8. O-O-O {[%clk 0:03:04.8]} 8... a5
{[%clk 0:02:59.6]} 9. Kb1 {[%clk 0:03:05.5]} 9... a4 {[%clk 0:03:00.2]} 10. f3
{[%clk 0:03:00.8]} 10... axb3 {[%clk 0:02:59.3]} 11. axb3 {[%clk 0:03:02.1]}
11... Re8 {[%clk 0:02:56.7]} 12. g4 {[%clk 0:03:02.6]} 12... exd4 {[%clk
0:02:51.5]} 13. exd4 {[%clk 0:03:02.8]} 13... c6 {[%clk 0:02:48]} 14. h4 {[%clk
0:02:57]} 14... Qa5 {[%clk 0:02:41]} 15. h5 {[%clk 0:02:58]} 15... Nd5 {[%clk
0:02:31.8]} 16. Nxd5 {[%clk 0:02:55.6]} 16... Qxd2 {[%clk 0:02:20.4]} 17. Rxd2
{[%clk 0:02:55.4]} 17... cxd5 {[%clk 0:02:21.2]} 18. Rd1 {[%clk 0:02:51.1]}
18... Nf6 {[%clk 0:02:15.4]} 19. h6 {[%clk 0:02:50.6]} 19... Bh8 {[%clk
0:02:12.9]} 20. Nc3 {[%clk 0:02:50]} 20... Bd7 {[%clk 0:02:00.7]} 21. Bg2 {[%clk
0:02:25.9]} 21... Re3 {[%clk 0:01:49.5]} 22. g5 {[%clk 0:02:21.7]} 22... Nh5
{[%clk 0:01:39.9]} 23. Nxd5 {[%clk 0:02:18]} 23... Re2 {[%clk 0:01:39.5]} 24.
Bf1 {[%clk 0:02:16.6]} 24... Rf2 {[%clk 0:01:34.5]} 25. Nb6 {[%clk 0:02:16.4]}
25... Bf5 {[%clk 0:01:20]} 26. Bd3 {[%clk 0:02:10.6]} 26... Bxd3 {[%clk
0:01:16.8]} 27. Rxd3 {[%clk 0:02:12.5]} 27... Re8 {[%clk 0:01:14.1]} 28. Nd5
{[%clk 0:02:10.5]} 28... f6 {[%clk 0:01:05.5]} 29. Rc3 {[%clk 0:01:56.2]} 29...
Ng3 {[%clk 0:00:54.3]} 30. Rd1 {[%clk 0:01:50]} 30... Ne2 {[%clk 0:00:54.5]} 31.
Rc7 {[%clk 0:01:48.6]} 31... fxg5 {[%clk 0:00:46.1]} 32. Ne7+ {[%clk 0:01:46.2]}
32... Kf8 {[%clk 0:00:43.1]} 33. Nc8 {[%clk 0:01:40.6]} 33... Kg8 {[%clk
0:00:38.6]} 34. Nxd6 {[%clk 0:01:41.1]} 34... Rxf3 {[%clk 0:00:35.8]} 35. Nxe8
{[%clk 0:01:41.6]} 35... g4 {[%clk 0:00:34.6]} 36. d5 {[%clk 0:01:40.9]} 36...
Nc3+ {[%clk 0:00:26.8]} 37. Bxc3 {[%clk 0:01:41.6]} 37... Bxc3 {[%clk
0:00:26.2]} 38. d6 {[%clk 0:01:41.9]} 38... g3 {[%clk 0:00:22.3]} 39. d7 {[%clk
0:01:43]} 39... Ba5 {[%clk 0:00:21.7]} 40. d8=Q {[%clk 0:01:40.9]} 1-0

[Event "*** Titled Tuesday 3|2 Blitz"]
[Site "Chess.com"]
[Date "2015.07.07"]
[Round "3"]
[White "geeeeri"]
[Black "stepanosinovsky"]
[Result "1-0"]
[WhiteElo "2323"]
[BlackElo "2288"]
[TimeControl "180+2"]
[EndTime "11:33:27 PDT"]
[Termination "geeeeri won by resignation"]

1. e4 {[%clk 0:02:55.6]} 1... b6 {[%clk 0:03:01.9]} 2. d4 {[%clk 0:02:55.5]}
2... Bb7 {[%clk 0:03:03.8]} 3. Bd3 {[%clk 0:02:56.4]} 3... e6 {[%clk 0:03:05.7]}
4. Nf3 {[%clk 0:02:53.3]} 4... Ne7 {[%clk 0:03:05.2]} 5. O-O {[%clk 0:02:53.2]}
5... d5 {[%clk 0:03:06.1]} 6. e5 {[%clk 0:02:54.1]} 6... Nbc6 {[%clk 0:03:05.2]}
7. c3 {[%clk 0:02:54.6]} 7... Qd7 {[%clk 0:03:05.3]} 8. b4 {[%clk 0:02:51.3]}
8... O-O-O {[%clk 0:03:05.1]} 9. a4 {[%clk 0:02:51.5]} 9... f6 {[%clk
0:03:02.9]} 10. a5 {[%clk 0:02:49.6]} 10... Ng6 {[%clk 0:03:02.4]} 11. axb6
{[%clk 0:02:47.2]} 11... axb6 {[%clk 0:03:02.9]} 12. Ba6 {[%clk 0:02:43.3]}
12... fxe5 {[%clk 0:03:01.2]} 13. Qa4 {[%clk 0:02:40.3]} 13... Nb8 {[%clk
0:02:46.2]} 14. Bxb7+ {[%clk 0:02:41]} 14... Kxb7 {[%clk 0:02:47.3]} 15. Qa8+
{[%clk 0:02:39.9]} 15... Kc8 {[%clk 0:02:48.6]} 16. dxe5 {[%clk 0:02:19.1]}
16... Be7 {[%clk 0:02:29.7]} 17. Nd4 {[%clk 0:02:15.3]} 17... Nxe5 {[%clk
0:02:29]} 18. Ra7 {[%clk 0:02:13.7]} 18... c5 {[%clk 0:00:27.6]} 19. Rxd7 {[%clk
0:02:01]} 19... Rxd7 {[%clk 0:00:29.5]} 20. Nxe6 {[%clk 0:01:56.4]} 20... Nc6
{[%clk 0:00:30.5]} 21. Qa2 {[%clk 0:01:49.7]} 21... cxb4 {[%clk 0:00:31.2]} 22.
Bf4 {[%clk 0:01:46.6]} 22... Bf6 {[%clk 0:00:27.8]} 23. cxb4 {[%clk 0:01:43]}
23... Re8 {[%clk 0:00:27.3]} 24. Ng5 {[%clk 0:01:26.8]} 24... d4 {[%clk
0:00:24.8]} 25. b5 {[%clk 0:01:22.9]} 25... Na5 {[%clk 0:00:16.3]} 26. Rc1+
{[%clk 0:01:21.7]} 26... Kb7 {[%clk 0:00:16.9]} 27. Nd2 {[%clk 0:01:16]} 27...
Re2 {[%clk 0:00:10.8]} 28. Nge4 {[%clk 0:01:16.1]} 28... Re7 {[%clk 0:00:05.6]}
29. Qd5+ {[%clk 0:01:15]} 29... Ka7 {[%clk 0:00:06.7]} 30. Kf1 {[%clk
0:00:54.4]} 30... Rxd2 {[%clk 0:00:06.1]} 31. Nxd2 {[%clk 0:00:50.4]} 31... Rd7
{[%clk 0:00:08]} 32. Bxb8+ {[%clk 0:00:48.6]} 32... Kxb8 {[%clk 0:00:09.9]} 33.
Qxd7 {[%clk 0:00:48.4]} 1-0

[Event "*** Titled Tuesday 3|2 Blitz"]
[Site "Chess.com"]
[Date "2015.07.07"]
[Round "3"]
[White "MichiganEagle"]
[Black "goldaxe"]
[Result "1-0"]
[WhiteElo "2264"]
[BlackElo "2151"]
[TimeControl "180+2"]
[EndTime "11:34:22 PDT"]
[Termination "MichiganEagle won by resignation"]

1. d4 {[%clk 0:03:01.9]} 1... Nf6 {[%clk 0:02:58.9]} 2. Nf3 {[%clk 0:03:03.5]}
2... g6 {[%clk 0:03:00.3]} 3. g3 {[%clk 0:03:04.6]} 3... Bg7 {[%clk 0:03:01.4]}
4. Bg2 {[%clk 0:03:06.3]} 4... d5 {[%clk 0:03:01.7]} 5. c4 {[%clk 0:03:05.8]}
5... c6 {[%clk 0:03:01.3]} 6. O-O {[%clk 0:03:05.7]} 6... O-O {[%clk 0:03:02.4]}
7. Qb3 {[%clk 0:03:07.2]} 7... Qb6 {[%clk 0:03:00.7]} 8. Rd1 {[%clk 0:03:03.7]}
8... Bf5 {[%clk 0:02:53.2]} 9. Qa3 {[%clk 0:02:56.5]} 9... dxc4 {[%clk
0:02:48.7]} 10. Ne5 {[%clk 0:02:56.4]} 10... Nbd7 {[%clk 0:02:12.1]} 11. Nxc4
{[%clk 0:02:55.8]} 11... Qb5 {[%clk 0:02:01.8]} 12. Nbd2 {[%clk 0:02:39.8]}
12... Nb6 {[%clk 0:01:57.6]} 13. b3 {[%clk 0:02:31.1]} 13... Nfd5 {[%clk
0:01:34.2]} 14. Bb2 {[%clk 0:02:31.8]} 14... Nb4 {[%clk 0:01:35.4]} 15. Qa5
{[%clk 0:02:07.6]} 15... Nc2 {[%clk 0:01:27.2]} 16. Rac1 {[%clk 0:01:28.9]}
16... Nxd4 {[%clk 0:01:27.2]} 17. Kf1 {[%clk 0:01:07.8]} 17... Rfd8 {[%clk
0:01:07.7]} 18. Ba3 {[%clk 0:01:03.3]} 18... e5 {[%clk 0:00:55.3]} 19. Bc5
{[%clk 0:00:35.4]} 19... Be6 {[%clk 0:00:42.3]} 20. Qa3 {[%clk 0:00:33.3]} 20...
Nc2 {[%clk 0:00:38.3]} 21. Rxc2 {[%clk 0:00:27.6]} 21... Nd5 {[%clk 0:00:31.5]}
22. Nd6 {[%clk 0:00:25.3]} 22... Rxd6 {[%clk 0:00:24.9]} 23. Bxd6 {[%clk
0:00:25.3]} 23... f5 {[%clk 0:00:19.9]} 24. Nc4 {[%clk 0:00:25.2]} 24... e4
{[%clk 0:00:19.9]} 25. Be5 {[%clk 0:00:22.4]} 25... Bf8 {[%clk 0:00:20.1]} 26.
Qb2 {[%clk 0:00:17.6]} 26... Bc5 {[%clk 0:00:21]} 27. Bd4 {[%clk 0:00:18.2]}
27... Bb4 {[%clk 0:00:21.5]} 28. a3 {[%clk 0:00:17.8]} 28... Bf8 {[%clk
0:00:22.3]} 29. a4 {[%clk 0:00:18.7]} 29... Qb4 {[%clk 0:00:23.3]} 30. h4 {[%clk
0:00:12.4]} 30... b5 {[%clk 0:00:23.8]} 31. axb5 {[%clk 0:00:13.1]} 31... cxb5
{[%clk 0:00:25.7]} 32. Ne3 {[%clk 0:00:14.4]} 32... Ne7 {[%clk 0:00:22.4]} 33.
Bc5 {[%clk 0:00:13.5]} 33... Qa5 {[%clk 0:00:23.3]} 34. Qf6 {[%clk 0:00:12.9]}
34... Bf7 {[%clk 0:00:22.2]} 35. Bxe7 {[%clk 0:00:13]} 35... Bxe7 {[%clk
0:00:23.5]} 36. Qxe7 {[%clk 0:00:13.7]} 36... Re8 {[%clk 0:00:24.5]} 37. Qc7
{[%clk 0:00:12.9]} 37... Qb4 {[%clk 0:00:24]} 38. Rcd2 {[%clk 0:00:10.7]} 38...
Bxb3 {[%clk 0:00:24.4]} 39. Rd8 {[%clk 0:00:11.4]} 39... Rf8 {[%clk 0:00:22.3]}
40. Rxf8+ {[%clk 0:00:11.3]} 1-0

[Event "*** Titled Tuesday 3|2 Blitz"]
[Site "Chess.com"]
[Date "2015.07.07"]
[Round "3"]
[White "alturas_pacificas"]
[Black "Schemato"]
[Result "1-0"]
[WhiteElo "2054"]
[BlackElo "2017"]
[TimeControl "180+2"]
[EndTime "11:34:34 PDT"]
[Termination "alturas_pacificas won by resignation"]

1. d4 {[%clk 0:02:59.9]} 1... e6 {[%clk 0:03:00.3]} 2. Bf4 {[%clk 0:03:01.2]}
2... f5 {[%clk 0:02:56.8]} 3. e3 {[%clk 0:03:02.3]} 3... Nf6 {[%clk 0:02:58]} 4.
h3 {[%clk 0:03:03.4]} 4... b6 {[%clk 0:02:54.4]} 5. g4 {[%clk 0:03:04.2]} 5...
Bb7 {[%clk 0:02:55.5]} 6. Rh2 {[%clk 0:03:05.6]} 6... g6 {[%clk 0:02:51.2]} 7.
c4 {[%clk 0:03:03.4]} 7... Bg7 {[%clk 0:02:50.9]} 8. Nc3 {[%clk 0:03:04.8]} 8...
d6 {[%clk 0:02:51.1]} 9. Bg2 {[%clk 0:03:03]} 9... Ne4 {[%clk 0:02:36.7]} 10.
gxf5 {[%clk 0:02:59.3]} 10... exf5 {[%clk 0:02:35.8]} 11. Nge2 {[%clk
0:02:53.4]} 11... Nd7 {[%clk 0:02:32.4]} 12. Nxe4 {[%clk 0:02:44.2]} 12... fxe4
{[%clk 0:02:24.8]} 13. Nc3 {[%clk 0:02:43.9]} 13... Qe7 {[%clk 0:02:18.2]} 14.
h4 {[%clk 0:02:38.7]} 14... h6 {[%clk 0:02:07.8]} 15. Qc2 {[%clk 0:02:35.4]}
15... Nf6 {[%clk 0:02:07.5]} 16. O-O-O {[%clk 0:02:23.6]} 16... O-O-O {[%clk
0:02:06.4]} 17. a4 {[%clk 0:02:22.7]} 17... Rde8 {[%clk 0:01:57.4]} 18. Rhh1
{[%clk 0:02:21.2]} 18... Rhf8 {[%clk 0:01:52.7]} 19. a5 {[%clk 0:02:19.4]} 19...
Nh5 {[%clk 0:01:52.1]} 20. Bh2 {[%clk 0:02:18.6]} 20... Rf7 {[%clk 0:01:18.1]}
21. a6 {[%clk 0:02:17.3]} 21... Bc6 {[%clk 0:01:13.7]} 22. Nd5 {[%clk
0:02:14.1]} 22... Bxd5 {[%clk 0:00:59.9]} 23. cxd5 {[%clk 0:02:14.5]} 23... Qxh4
{[%clk 0:00:45.7]} 24. Qc6 {[%clk 0:01:57.2]} 24... Rff8 {[%clk 0:00:16.8]} 25.
Bxd6 {[%clk 0:01:48.6]} 25... Qd8 {[%clk 0:00:16.6]} 26. Bh3+ {[%clk 0:01:47.1]}
26... Rf5 {[%clk 0:00:13.5]} 27. Bxf5+ {[%clk 0:01:46.2]} 27... gxf5 {[%clk
0:00:14.6]} 28. Qa8+ {[%clk 0:01:38.8]} 28... Kd7 {[%clk 0:00:15.1]} 29. Qxd8+
{[%clk 0:01:40]} 29... Rxd8 {[%clk 0:00:15.1]} 30. Bxc7 {[%clk 0:01:37.7]} 30...
Kxc7 {[%clk 0:00:13.1]} 31. Rxh5 {[%clk 0:01:37.5]} 31... Rxd5 {[%clk
0:00:12.3]} 32. Kb1 {[%clk 0:01:36.3]} 32... b5 {[%clk 0:00:12.4]} 33. Rc1+
{[%clk 0:01:35]} 33... Kb6 {[%clk 0:00:13.6]} 34. Rc5 {[%clk 0:01:36.1]} 34...
Rxc5 {[%clk 0:00:13.2]} 35. dxc5+ {[%clk 0:01:38]} 35... Kxa6 {[%clk 0:00:14.1]}
36. Rxf5 {[%clk 0:01:38.7]} 36... b4 {[%clk 0:00:14.3]} 37. Rf7 {[%clk
0:01:37.5]} 37... Be5 {[%clk 0:00:13.6]} 38. Re7 {[%clk 0:01:34.6]} 38... Bh2
{[%clk 0:00:14.2]} 39. Rxe4 {[%clk 0:01:34.1]} 39... Kb5 {[%clk 0:00:15.5]} 40.
c6 {[%clk 0:01:33.6]} 40... Kxc6 {[%clk 0:00:16.1]} 41. Rxb4 {[%clk 0:01:34]}
41... Bg1 {[%clk 0:00:17.7]} 42. Rf4 {[%clk 0:01:33.5]} 42... h5 {[%clk
0:00:18.3]} 43. e4 {[%clk 0:01:33.8]} 43... h4 {[%clk 0:00:18.7]} 44. Rxh4
{[%clk 0:01:33.1]} 44... Bxf2 {[%clk 0:00:19.5]} 45. Rg4 {[%clk 0:01:30.5]}
45... Kd6 {[%clk 0:00:19.9]} 46. Kc2 {[%clk 0:01:26.8]} 46... Ke5 {[%clk
0:00:20.9]} 47. Kd3 {[%clk 0:01:27.2]} 47... Bb6 {[%clk 0:00:20.1]} 48. b3
{[%clk 0:01:23.5]} 48... Bf2 {[%clk 0:00:20]} 49. Rg5+ {[%clk 0:01:24.2]} 49...
Ke6 {[%clk 0:00:17.3]} 50. Rh5 {[%clk 0:01:25.1]} 50... Bb6 {[%clk 0:00:17.4]}
51. Kc4 {[%clk 0:01:25.8]} 51... Kf6 {[%clk 0:00:17.6]} 52. b4 {[%clk
0:01:25.7]} 52... Kg6 {[%clk 0:00:18.6]} 53. Rf5 {[%clk 0:01:25.9]} 53... Bg1
{[%clk 0:00:17.7]} 54. b5 {[%clk 0:01:26.5]} 54... Be3 {[%clk 0:00:18.4]} 55.
Kd5 {[%clk 0:01:27]} 55... Bg1 {[%clk 0:00:18.2]} 56. Rf1 {[%clk 0:01:27.4]}
56... Bb6 {[%clk 0:00:18.6]} 57. e5 {[%clk 0:01:26.2]} 1-0

[Event "*** Titled Tuesday 3|2 Blitz"]
[Site "Chess.com"]
[Date "2015.07.07"]
[Round "3"]
[White "zmaj23"]
[Black "wonderfultime"]
[Result "1-0"]
[WhiteElo "2448"]
[BlackElo "2560"]
[TimeControl "180+2"]
[EndTime "11:34:45 PDT"]
[Termination "zmaj23 won by resignation"]

1. e4 {[%clk 0:03:01.9]} 1... e6 {[%clk 0:02:59.2]} 2. d4 {[%clk 0:03:01.9]}
2... d5 {[%clk 0:03:00.5]} 3. Nc3 {[%clk 0:03:02.8]} 3... dxe4 {[%clk 0:03:02]}
4. Nxe4 {[%clk 0:03:03.8]} 4... Bd7 {[%clk 0:03:03.6]} 5. d5 {[%clk 0:03:04.1]}
5... exd5 {[%clk 0:02:39.9]} 6. Qxd5 {[%clk 0:03:06]} 6... Nc6 {[%clk
0:02:39.5]} 7. Nf3 {[%clk 0:02:47.7]} 7... Nf6 {[%clk 0:02:30.1]} 8. Nxf6+
{[%clk 0:02:48.1]} 8... Qxf6 {[%clk 0:02:32]} 9. c3 {[%clk 0:02:34.9]} 9...
O-O-O {[%clk 0:02:23.8]} 10. Be2 {[%clk 0:02:36]} 10... h6 {[%clk 0:02:07.8]}
11. Be3 {[%clk 0:02:34.1]} 11... Bh3 {[%clk 0:01:35.3]} 12. Qc4 {[%clk
0:02:25.3]} 12... Be6 {[%clk 0:01:20.8]} 13. Qa4 {[%clk 0:02:23.7]} 13... Bd5
{[%clk 0:01:13.7]} 14. Bb5 {[%clk 0:02:23.4]} 14... Bxf3 {[%clk 0:00:56.7]} 15.
gxf3 {[%clk 0:02:23]} 15... Qxf3 {[%clk 0:00:58.6]} 16. Rg1 {[%clk 0:02:18.3]}
16... Bd6 {[%clk 0:00:41.3]} 17. Bxc6 {[%clk 0:02:14.5]} 17... bxc6 {[%clk
0:00:43.2]} 18. Qxa7 {[%clk 0:02:14.9]} 18... Rhe8 {[%clk 0:00:43.4]} 19. Qa6+
{[%clk 0:01:48.3]} 19... Kd7 {[%clk 0:00:42.8]} 20. Rxg7 {[%clk 0:01:49]} 20...
Re7 {[%clk 0:00:21]} 21. Qe2 {[%clk 0:01:44.8]} 21... Qh1+ {[%clk 0:00:21.6]}
22. Qf1 {[%clk 0:01:43.3]} 22... Qf3 {[%clk 0:00:23.1]} 23. Rd1 {[%clk
0:01:36.8]} 23... Rde8 {[%clk 0:00:21.2]} 24. Qe2 {[%clk 0:01:31.1]} 24... Qh1+
{[%clk 0:00:21]} 25. Kd2 {[%clk 0:01:31.9]} 25... Qd5+ {[%clk 0:00:22.2]} 26.
Kc1 {[%clk 0:01:30.3]} 26... Qxa2 {[%clk 0:00:23.1]} 27. Qg4+ {[%clk 0:01:26.7]}
27... Qe6 {[%clk 0:00:19.7]} 28. Qxe6+ {[%clk 0:01:27.8]} 28... Kxe6 {[%clk
0:00:21.6]} 29. Rh7 {[%clk 0:01:26.3]} 29... f6 {[%clk 0:00:19.1]} 30. Rxh6
{[%clk 0:01:27.6]} 30... Rg8 {[%clk 0:00:18.3]} 31. Bd4 {[%clk 0:01:25.3]} 31...
Bf4+ {[%clk 0:00:18]} 32. Be3 {[%clk 0:01:26.8]} 32... Bxh6 {[%clk 0:00:18.6]}
33. Bxh6 {[%clk 0:01:27.7]} 33... Rg2 {[%clk 0:00:19.8]} 34. Be3 {[%clk
0:01:25.9]} 34... Rxh2 {[%clk 0:00:20.7]} 35. Rd4 {[%clk 0:01:23.6]} 35... Rh5
{[%clk 0:00:20.6]} 36. Kc2 {[%clk 0:01:22.6]} 36... c5 {[%clk 0:00:18.7]} 37.
Ra4 {[%clk 0:01:20.4]} 37... Kd7 {[%clk 0:00:18.8]} 38. Ra6 {[%clk 0:01:21.1]}
38... Re6 {[%clk 0:00:19.6]} 39. Ra5 {[%clk 0:01:17.9]} 39... Ree5 {[%clk
0:00:20.8]} 40. Ra4 {[%clk 0:01:17.2]} 40... Kc6 {[%clk 0:00:16.2]} 41. Ra6+
{[%clk 0:01:16]} 41... Kb5 {[%clk 0:00:17.4]} 42. Rxf6 {[%clk 0:01:16.2]} 42...
c4 {[%clk 0:00:17.8]} 43. b4 {[%clk 0:01:14.8]} 43... cxb3+ {[%clk 0:00:16.8]}
44. Kxb3 {[%clk 0:01:15.6]} 44... Re4 {[%clk 0:00:18.3]} 45. Bd4 {[%clk
0:01:13]} 45... Rh3 {[%clk 0:00:14.7]} 46. f3 {[%clk 0:01:12]} 46... Rxd4 {[%clk
0:00:07.8]} 47. cxd4 {[%clk 0:01:13.9]} 47... c5 {[%clk 0:00:09.7]} 48. Rf5
{[%clk 0:01:12.8]} 48... Rh4 {[%clk 0:00:10.4]} 49. dxc5 {[%clk 0:01:11.8]}
49... Rb4+ {[%clk 0:00:08.8]} 50. Kc3 {[%clk 0:01:11.4]} 50... Rc4+ {[%clk
0:00:10.7]} 51. Kd3 {[%clk 0:01:12.7]} 51... Ra4 {[%clk 0:00:11.9]} 52. Ke3
{[%clk 0:01:10]} 52... Kc6 {[%clk 0:00:13.4]} 53. Re5 {[%clk 0:01:08.1]} 53...
Ra3+ {[%clk 0:00:14.8]} 54. Ke4 {[%clk 0:01:08.6]} 54... Ra4+ {[%clk 0:00:16.7]}
55. Kf5 {[%clk 0:01:09.5]} 55... Ra3 {[%clk 0:00:17.8]} 56. f4 {[%clk
0:01:11.1]} 56... Rg3 {[%clk 0:00:18.9]} 57. Kf6 {[%clk 0:01:11]} 57... Rf3
{[%clk 0:00:20.1]} 58. f5 {[%clk 0:01:12.6]} 1-0